fUST/lending_fUST_20240414
["ID","MTS","AMOUNT","RATE_DAILY","PERIOD"]
[322561824,1713063044832,-795.782119,0.00054794,7]
[322561825,1713063044842,-502.73353405,0.00054794,120]
[322561826,1713063044853,-795.782119,0.00054794,7]
[322561827,1713063044864,-795.782119,0.00054794,7]
[322561828,1713063044874,-795.782119,0.00054794,7]
[322561829,1713063044884,-795.782119,0.00054794,7]
[322561830,1713063044894,-795.782119,0.00054794,7]
[322561831,1713063044905,-1665.56,0.00054794,120]
[322561832,1713063044914,-500.0,0.00054794,120]
[322561833,1713063044923,-151.0,0.00054794,7]
[322561834,1713063044933,-500.0,0.00054794,120]
[322561835,1713063044944,-151.0,0.00054794,7]
[322561836,1713063044954,-151.0,0.00054794,7]
[322561837,1713063044964,-260.4001905,0.00054794,120]
[322561838,1713063044974,-423.39154987,0.00054794,120]
[322561839,1713063044985,-151.0,0.00054794,7]
[322561840,1713063044995,-151.0,0.00054794,7]
[322561841,1713063045005,-189.84830958,0.00054794,20]
[322561842,1713063045016,-1157.74,0.00054794,120]
[322561843,1713063045027,-761.21,0.00054794,120]
[322561844,1713063045036,-500.0,0.00054794,120]
[322561845,1713063045047,-500.0,0.00054794,120]
[322561846,1713063045057,-500.0,0.00054794,120]
[322561847,1713063045067,-500.0,0.00054794,120]
[322561848,1713063045077,-500.0,0.00054794,120]
[322561849,1713063045087,-461.04376869,0.00054794,120]
[322561850,1713063045097,-500.0,0.00054794,120]
[322561851,1713063045107,-500.0,0.00054794,120]
[322561852,1713063045117,-500.0,0.00054794,120]
[322561853,1713063045127,-554.3,0.00054794,120]
[322561854,1713063045140,-500.0,0.00054794,120]
[322561855,1713063045152,-500.0,0.00054794,120]
[322561856,1713063045161,-500.0,0.00054794,120]
[322561857,1713063045171,-551.83,0.00054794,120]
[322561858,1713063045180,-500.0,0.00054794,120]
[322561859,1713063045190,-500.0,0.00054794,120]
[322561860,1713063045199,-500.0,0.00054794,120]
[322561861,1713063045209,-500.0,0.00054794,120]
[322561862,1713063045218,-500.0,0.00054794,120]
[322561863,1713063045227,-396.21208147,0.00054794,120]
[322561864,1713063045236,-500.0,0.00054794,120]
[322561865,1713063045245,-500.0,0.00054794,120]
[322561866,1713063045254,-500.5507359,0.00054794,120]
[322561867,1713063045263,-500.0,0.00054794,120]
[322561868,1713063045272,-502.64223332,0.00054794,120]
[322561869,1713063045281,-500.0,0.00054794,120]
[322561870,1713063045290,-501.67613136,0.00054794,120]
[322561871,1713063045301,-500.0,0.00054794,120]
[322561872,1713063045310,-1238.789894,0.00054794,7]
[322561873,1713063045318,-1238.789894,0.00054794,7]
[322561874,1713063045327,-1238.789894,0.00054794,7]
[322561875,1713063045337,-1238.789894,0.00054794,7]
[322561876,1713063045346,-1238.789894,0.00054794,7]
[322561877,1713063045355,-500.0,0.00054794,120]
[322561878,1713063045364,-500.0,0.00054794,120]
[322561879,1713063045373,-151.0,0.00054794,7]
[322561880,1713063045382,-151.0,0.00054794,7]
[322561881,1713063045391,-151.0,0.00054794,7]
[322561882,1713063045400,-151.0,0.00054794,7]
[322561883,1713063045409,-300.447699,0.00054794,7]
[322561884,1713063045418,-1238.789894,0.00054794,7]
[322561885,1713063045427,-1238.789894,0.00054794,7]
[322561886,1713063045436,-1238.789894,0.00054794,7]
[322561887,1713063045445,-1238.789894,0.00054794,7]
[322561888,1713063045455,-1238.789894,0.00054794,7]
[322561889,1713063045464,-500.0,0.00054794,120]
[322561890,1713063045473,-500.96520474,0.00054794,120]
[322561891,1713063045483,-500.0,0.00054794,120]
[322561892,1713063045492,-500.0,0.00054794,120]
[322561893,1713063045501,-151.0,0.00054794,7]
[322561894,1713063045510,-151.0,0.00054794,7]
[322561895,1713063045519,-151.0,0.00054794,7]
[322561896,1713063045528,-151.0,0.00054794,7]
[322561897,1713063045538,-151.0,0.00054794,7]
[322561898,1713063045548,-500.0,0.00054794,120]
[322561899,1713063045558,-1428.91,0.00054794,120]
[322561900,1713063045567,-500.0,0.00054794,120]
[322561901,1713063045577,-500.0,0.00054794,120]
[322561902,1713063045586,-500.0,0.00054794,120]
[322561903,1713063045596,-156.95461588,0.00054794,120]
[322561904,1713063045607,-500.0,0.00054794,120]
[322561905,1713063045616,-500.0,0.00054794,120]
[322561906,1713063045625,-500.0,0.00054794,120]
[322561907,1713063045635,-500.0,0.00054794,120]
[322561908,1713063045644,-500.0,0.00054794,120]
[322561909,1713063045654,-500.0,0.00054794,120]
[322561910,1713063045664,-500.0,0.00054794,120]
[322561911,1713063045673,-424.694058,0.00054794,7]
[322561912,1713063045682,-424.694058,0.00054794,7]
[322561913,1713063045691,-424.694058,0.00054794,7]
[322561914,1713063045700,-424.694058,0.00054794,7]
[322561915,1713063045710,-424.694058,0.00054794,7]
[322561916,1713063045720,-424.694058,0.00054794,7]
[322561917,1713063045729,-424.694058,0.00054794,7]
[322561918,1713063045738,-424.694058,0.00054794,7]
[322561919,1713063045747,-200.5177822,0.00054794,120]
[322561920,1713063045757,-424.694058,0.00054794,7]
[322561921,1713063045766,-424.694058,0.00054794,7]
[322561922,1713063045775,-500.0,0.00054794,120]
[322561923,1713063045784,-500.0,0.00054794,120]
[322561924,1713063045796,-500.0,0.00054794,120]
[322561925,1713063045805,-500.0,0.00054794,120]
[322561926,1713063045814,-500.0,0.00054794,120]
[322561927,1713063045822,-500.0,0.00054794,120]
[322561928,1713063045831,-500.0,0.00054794,120]
[322561929,1713063045840,-500.0,0.00054794,120]
[322561930,1713063045849,-418.08315446,0.00054794,120]
[322561931,1713063045880,-81.91684554,0.00054794,120]
[322561932,1713063045890,-501.51456025,0.00054794,120]
[322561933,1713063045898,-48.1776581,0.00054794,7]
[322561934,1713063046338,-109.9158919,0.00054794,7]
[322561935,1713063046348,-140.49725006,0.00054794,7]
[322561936,1713063046370,-0.00180861,0.00054794,7]
[322561947,1713063047814,-259.35893925,0.000274,2]
[322561948,1713063047824,-355.0819515,0.00054793,4]
[322561949,1713063047833,-17.59449133,0.00054794,7]
[322561950,1713063047842,-158.09355,0.00054794,7]
[322561951,1713063047851,-158.09355,0.00054794,7]
[322561952,1713063047861,-158.09355,0.00054794,7]
[322561953,1713063047870,-158.09355,0.00054794,7]
[322561955,1713063047880,-158.09355,0.00054794,7]
[322561957,1713063047889,-158.09355,0.00054794,7]
[322561958,1713063047898,-158.09355,0.00054794,7]
[322561959,1713063047908,-158.09355,0.00054794,7]
[322561960,1713063047917,-500.0,0.00054794,120]
[322561961,1713063047926,-500.0,0.00054794,120]
[322561962,1713063047935,-500.0,0.00054794,120]
[322561963,1713063047946,-500.0,0.00054794,120]
[322561964,1713063047955,-500.0,0.00054794,120]
[322561965,1713063047965,-178.175572,0.00054794,7]
[322561966,1713063047975,-178.175572,0.00054794,7]
[322561967,1713063047984,-500.0,0.00054794,120]
[322561968,1713063047994,-178.175572,0.00054794,7]
[322561969,1713063048004,-500.0,0.00054794,120]
[322561970,1713063048013,-178.175572,0.00054794,7]
[322561971,1713063048022,-178.175572,0.00054794,7]
[322561972,1713063048032,-500.0,0.00054794,120]
[322561973,1713063048041,-500.0,0.00054794,120]
[322561974,1713063048055,-500.0,0.00054794,120]
[322561975,1713063048064,-178.175572,0.00054794,7]
[322561976,1713063048075,-178.175572,0.00054794,7]
[322561977,1713063048084,-500.0,0.00054794,120]
[322561978,1713063048094,-178.175572,0.00054794,7]
[322561979,1713063048103,-178.175572,0.00054794,7]
[322561980,1713063048113,-178.175572,0.00054794,7]
[322561981,1713063048123,-502.52188567,0.00054794,120]
[322561982,1713063048133,-500.41261387,0.00054794,120]
[322561983,1713063048145,-500.0,0.00054794,120]
[322561984,1713063048155,-500.0,0.00054794,120]
[322561985,1713063048166,-500.0,0.00054794,120]
[322561986,1713063048175,-502.88020961,0.00054794,120]
[322561987,1713063048184,-572.41,0.00054794,120]
[322561988,1713063048193,-500.0,0.00054794,120]
[322561989,1713063048203,-502.19876948,0.00054794,120]
[322561990,1713063048213,-500.0,0.00054794,120]
[322561991,1713063048222,-1708.972627,0.00054794,7]
[322561992,1713063048231,-764.82,0.00054794,120]
[322561993,1713063048241,-2520.792238,0.00054794,7]
[322561994,1713063048250,-3362.7,0.00054794,120]
[322561995,1713063048259,-2520.792238,0.00054794,7]
[322561996,1713063048269,-2520.792238,0.00054794,7]
[322561997,1713063048279,-30.75837593,0.00054794,7]
[322561998,1713063048673,-2490.03386207,0.00054794,7]
[322561999,1713063048684,-28.46186988,0.00054794,7]
[322562000,1713063048697,-500.0,0.00054794,7]
[322562005,1713063278127,3500.0,0.00042891,30]
[322562006,1713063291346,3123.0,0.00042891,30]
[322562007,1713063310385,2001.97971802,0.00042891,30]
[322562008,1713063335160,3500.0,0.00042991,30]
[322562009,1713063359716,3230.0,0.00042991,30]
[322562010,1713063372095,3770.0,0.00042991,30]
[322562011,1713063385601,3393.0,0.00042991,30]
[322562012,1713063401645,3053.0,0.00042991,30]
[322562013,1713063415599,2748.0,0.00042991,30]
[322562015,1713063426606,4736.0,0.00042991,30]
[322562016,1713063440723,2000.0,0.00042991,30]
[322562017,1713063454870,3400.0,0.00042991,30]
[322562018,1713063465892,3600.0,0.00042991,30]
[322562019,1713063481717,3400.0,0.00042991,30]
[322562020,1713063490785,3600.0,0.00042968,30]
[322562021,1713063501871,2000.0,0.00042968,30]
[322562022,1713063513772,2000.0,0.00042968,30]
[322562031,1713063935123,-154.86062544,0.00027396,2]
[322562032,1713063935145,-160.717858,0.00027397,2]
[322562033,1713063935167,-259.72436546,0.0003,5]
[322562038,1713064163089,-169.996218,0.00027397,2]
[322562039,1713064163110,-155.43711806,0.00027642,2]
[322562099,1713064232136,-82.48607201,0.0003,5]
[322562101,1713064232146,-358.13555304,0.0003,4]
[322562183,1713064238002,-655.92249803,0.0003,4]
[322562185,1713064238013,-167.2761,0.00031559,2]
[322562187,1713064238023,-1077.2205797,0.00032105,2]
[322562189,1713064238034,-1270.5843605,0.00032369,2]
[322562191,1713064238045,-530.550559,0.000325,2]
[322562193,1713064238056,-250.0,0.00032664,2]
[322562195,1713064238067,-199.667359,0.0003271,2]
[322562197,1713064238078,-434.8675648,0.00032789,2]
[322562199,1713064238090,-167.2761,0.00032993,2]
[322562201,1713064238101,-200.0,0.00033232,30]
[322562203,1713064238112,-155.39961684,0.00033862,4]
[322562205,1713064238123,-465.26500893,0.00034426,4]
[322562207,1713064238134,-167.2761,0.00034427,2]
[322562209,1713064238144,-1356.61955076,0.00034553,4]
[322562211,1713064238155,-400.0,0.00034554,2]
[322562213,1713064238164,-15896.85177226,0.00034555,10]
[322562216,1713064238178,-27600.16367347,0.00034555,10]
[322562218,1713064238189,-481.47263,0.00035616,120]
[322562220,1713064238199,-167.2761,0.00035862,2]
[322562221,1713064238209,-166.19229,0.00035961,2]
[322562224,1713064238220,-2516.562381,0.00036,30]
[322562225,1713064238233,-2000.0,0.000372,12]
[322562227,1713064238244,-2000.0,0.000372,12]
[322562229,1713064238255,-2000.0,0.0003721,12]
[322562231,1713064238265,-2000.0,0.0003721,12]
[322562233,1713064238276,-2000.0,0.0003722,12]
[322562236,1713064238289,-2000.0,0.0003722,12]
[322562238,1713064238298,-2000.0,0.0003723,13]
[322562240,1713064238308,-2000.0,0.0003723,13]
[322562242,1713064238318,-2000.0,0.0003724,13]
[322562243,1713064238329,-2000.0,0.0003724,13]
[322562244,1713064238342,-2000.0,0.0003725,13]
[322562245,1713064238358,-2000.0,0.0003725,13]
[322562246,1713064238368,-2000.0,0.0003726,13]
[322562247,1713064238377,-2000.0,0.0003726,13]
[322562248,1713064238389,-2000.0,0.0003727,13]
[322562249,1713064238399,-2000.0,0.0003727,13]
[322562250,1713064238409,-2000.0,0.0003728,13]
[322562251,1713064238419,-2000.0,0.0003728,13]
[322562252,1713064238428,-500.0,0.00037289,15]
[322562253,1713064238438,-2000.0,0.0003729,13]
[322562254,1713064238447,-2000.0,0.0003729,13]
[322562255,1713064238461,-2000.0,0.000373,13]
[322562256,1713064238484,-2000.0,0.000373,13]
[322562257,1713064238494,-2000.0,0.0003731,13]
[322562258,1713064238504,-2000.0,0.0003731,13]
[322562259,1713064238514,-2000.0,0.0003732,13]
[322562260,1713064238526,-2000.0,0.0003732,13]
[322562261,1713064238536,-2000.0,0.0003733,13]
[322562262,1713064238546,-2000.0,0.0003733,13]
[322562263,1713064238555,-2000.0,0.0003734,13]
[322562264,1713064238565,-2000.0,0.0003734,13]
[322562265,1713064238574,-2000.0,0.0003735,13]
[322562266,1713064238583,-2000.0,0.0003735,13]
[322562267,1713064238594,-2000.0,0.0003736,13]
[322562268,1713064238604,-2000.0,0.0003736,13]
[322562269,1713064238614,-2000.0,0.0003737,13]
[322562270,1713064238624,-2000.0,0.0003737,13]
[322562271,1713064238634,-2000.0,0.0003738,13]
[322562272,1713064238643,-2000.0,0.0003738,13]
[322562273,1713064238653,-2000.0,0.0003739,13]
[322562274,1713064238662,-2000.0,0.0003739,13]
[322562275,1713064238672,-2000.0,0.000374,13]
[322562276,1713064238682,-2000.0,0.000374,13]
[322562277,1713064238692,-2000.0,0.0003741,13]
[322562278,1713064238701,-2000.0,0.0003741,13]
[322562279,1713064238711,-2000.0,0.0003742,13]
[322562280,1713064238720,-2000.0,0.0003742,13]
[322562281,1713064238735,-2000.0,0.0003743,13]
[322562282,1713064238744,-2000.0,0.0003743,13]
[322562283,1713064238755,-2000.0,0.0003744,14]
[322562284,1713064238765,-2000.0,0.0003744,14]
[322562285,1713064238775,-2000.0,0.0003745,14]
[322562286,1713064238785,-2000.0,0.0003745,14]
[322562287,1713064238795,-2000.0,0.0003746,14]
[322562288,1713064238806,-2000.0,0.0003746,14]
[322562289,1713064238816,-2000.0,0.0003747,14]
[322562290,1713064238827,-2000.0,0.0003747,14]
[322562291,1713064238837,-2000.0,0.0003748,14]
[322562292,1713064238848,-2000.0,0.0003748,14]
[322562293,1713064238858,-2000.0,0.0003749,14]
[322562294,1713064238868,-2000.0,0.0003749,14]
[322562295,1713064238878,-2000.0,0.000375,14]
[322562296,1713064238949,-2000.0,0.000375,14]
[322562297,1713064238960,-2000.0,0.0003751,14]
[322562298,1713064238969,-2500.001403,0.0003751,14]
[322562299,1713064238984,-2000.0,0.0003752,14]
[322562300,1713064238994,-2800.001496,0.0003753,14]
[322562301,1713064239005,-449.0,0.00038009,2]
[322562302,1713064239015,-160.717858,0.00039574,2]
[322562303,1713064239024,-682.10461258,0.0004,2]
[322562304,1713064239034,-150.0,0.00040891,2]
[322562305,1713064239044,-2000.0,0.00041,30]
[322562306,1713064239054,-2000.0,0.0004101,30]
[322562307,1713064239064,-2000.0,0.0004102,30]
[322562308,1713064239073,-2000.0,0.0004103,30]
[322562309,1713064239083,-30937.74346926,0.0004104,5]
[322562320,1713064240058,-5588.02074472,0.0004104,5]
[322562321,1713064240069,-2000.0,0.0004104,31]
[322562322,1713064240080,-2900.00028,0.0004105,31]
[322562323,1713064240092,-179.48918773,0.00041094,4]
[322562325,1713064240104,-481.47263,0.00041553,120]
[322562326,1713064240116,-1012.17,0.000418,33]
[322562328,1713064240128,-1499.802333,0.000419,40]
[322562329,1713064240140,-1000.0,0.000424,40]
[322562331,1713064240151,-3175.136651,0.000427,30]
[322562333,1713064240162,-1000.0,0.000428,38]
[322562335,1713064240173,-3776.56350496,0.00042862,2]
[322562336,1713064240185,-200.0,0.000429,60]
[322562338,1713064240197,-1000.0,0.000429,40]
[322562340,1713064240209,-3055.97494085,0.00042962,7]
[322562342,1713064240223,-982.36483066,0.00042962,7]
[322562438,1713064243772,-5551.16902214,0.00042962,7]
[322562439,1713064243790,-31210.5,0.00042962,7]
[322562465,1713064890886,250318.33057899,0.00042875,30]
[322562466,1713065149164,-154.84515485,0.00027295,2]
[322562467,1713065149189,-413.01617915,0.00027296,2]
[322562468,1713065149211,-159.16205,0.00027397,2]
[322562469,1713065149232,-545.3132762,0.00040158,2]
[322562470,1713065241158,-221.23139293,0.00040157,4]
[322562471,1713065249086,-709.72261471,0.00040157,4]
[322562472,1713065249106,-154.84515485,0.00040158,2]
[322562473,1713065249126,-531.90224543,0.00040159,2]
[322562474,1713065413681,172.29685,0.00027397,2]
[322562502,1713065432720,-682.07857108,0.00040252,2]
[322562503,1713065432730,-200.0,0.00040253,2]
[322562504,1713065432739,-200.0,0.00040306,30]
[322562505,1713065432749,-265.275279,0.00040533,2]
[322562506,1713065432758,-1203.681576,0.00040694,120]
[322562507,1713065432767,-223.61552686,0.00040729,4]
[322562508,1713065432783,-536.4355009,0.00040775,2]
[322562509,1713065432792,-377.6407633,0.00040806,2]
[322562510,1713065432801,-927.27197832,0.00040812,4]
[322562511,1713065432811,-159.16205,0.00041096,2]
[322562512,1713065432821,-1000.0,0.000418,36]
[322562513,1713065432831,-5104.0,0.000424,120]
[322562514,1713065432842,-3829.01577581,0.00042775,2]
[322562515,1713065432852,-155.88994758,0.00042872,4]
[322562516,1713065432861,-1973.327654,0.00042872,4]
[322562517,1713065432870,-332.00817099,0.00042872,4]
[322562518,1713065432880,-213.22358192,0.00042872,4]
[322562519,1713065432892,-422.00653113,0.00042872,4]
[322562520,1713065432901,-453.68797097,0.00042872,4]
[322562521,1713065432911,-744.07945583,0.00042872,4]
[322562522,1713065432920,-632.09071412,0.00042872,4]
[322562523,1713065432931,-230.87713916,0.00042872,4]
[322562524,1713065432941,-900.18167675,0.00042872,4]
[322562525,1713065432951,-382.50087644,0.00042872,4]
[322562526,1713065432961,-208.95330074,0.00042872,4]
[322562527,1713065432985,-634.90158288,0.00042872,4]
[322562528,1713065432996,-182.21132244,0.00042872,4]
[322562529,1713065433006,-548.63201378,0.00042872,4]
[322562530,1713065433018,-193.99989894,0.00042872,4]
[322562531,1713065433030,-1297.50106185,0.00042872,4]
[322562532,1713065433042,-155.1606723,0.00042872,4]
[322562533,1713065433053,-2003.93511957,0.00042872,4]
[322562534,1713065433064,-155.48971478,0.00042872,4]
[322562535,1713065433076,-155.7017042,0.00042872,7]
[322562536,1713065433088,-156.22346831,0.00042872,4]
[322562537,1713065433099,-156.43519817,0.00042872,4]
[322562538,1713065433110,-280.11173304,0.00042872,4]
[322562539,1713065433122,-515.10153633,0.00042872,4]
[322562540,1713065433134,-155.11825,0.00042872,4]
[322562541,1713065433149,-469.47636239,0.00042872,4]
[322562542,1713065433161,-155.52383077,0.00042872,4]
[322562543,1713065433172,-410.47435021,0.00042872,7]
[322562544,1713065433184,-2018.02519124,0.00042872,2]
[322562545,1713065433195,-312.75627863,0.00042872,4]
[322562546,1713065433206,-457.9236817,0.00042872,30]
[322562547,1713065433217,-868.49999092,0.00042872,4]
[322562548,1713065433231,-1959.91025879,0.00042872,4]
[322562549,1713065433243,-1215.90403432,0.00042872,4]
[322562550,1713065433255,-210.42379997,0.00042873,2]
[322562551,1713065433267,-500.0,0.00042874,31]
[322562552,1713065433279,-327.78737273,0.00042874,31]
[322562553,1713065433291,-500.0,0.00042874,31]
[322562554,1713065433303,-316.1140928,0.00042874,31]
[322562555,1713065433314,-210.50213484,0.00042874,31]
[322562556,1713065433327,-500.0,0.00042874,31]
[322562557,1713065433340,-482.0929602,0.00042874,31]
[322562558,1713065433351,-491.17164796,0.00042874,31]
[322562559,1713065433362,-237.59954988,0.00042874,31]
[322562560,1713065433374,-427.61,0.00042874,7]
[322562561,1713065433387,-427.61,0.00042874,7]
[322562562,1713065433401,-427.61,0.00042874,7]
[322562563,1713065433413,-427.61,0.00042874,7]
[322562564,1713065433424,-427.61,0.00042874,7]
[322562565,1713065433436,-471.24,0.00042874,7]
[322562566,1713065433448,-13203.29327625,0.00042875,5]
[322562577,1713065438150,-32051.60772236,0.00042875,5]
[322562578,1713065438163,-4526.43270785,0.00042875,5]
[322562579,1713065438250,-5007.31261451,0.00042875,5]
[322562580,1713065438261,-1000.0,0.00042875,30]
[322562581,1713065438272,-378070.44156693,0.00042875,7]
[322562588,1713065440445,-141.37074002,0.00042875,7]
[322563411,1713065447021,-286928.6116909,0.00042875,7]
[322563413,1713065447030,-42952.21405721,0.00042875,2]
[322563415,1713065447040,-7464.73572056,0.00042875,2]
[322563417,1713065447049,-14276.81644981,0.00042875,2]
[322563419,1713065447058,-316.24390008,0.00042875,2]
[322563422,1713065447068,-1026.41489309,0.00042875,2]
[322563424,1713065447078,-162.05252989,0.00042875,2]
[322563426,1713065447087,-68183.0,0.000429,5]
[322563427,1713065447097,-26197.25337607,0.000429,2]
[322563437,1713065447176,-714.86478588,0.00042917,4]
[322563439,1713065447186,-600.63461861,0.00042958,4]
[322563441,1713065447196,-500.0,0.00042958,2]
[322563443,1713065447206,-5314.03478305,0.00042959,4]
[322563445,1713065447215,-284.34823194,0.0004296,4]
[322563447,1713065447225,-182.74826404,0.0004296,4]
[322563449,1713065447234,-201.82015991,0.0004296,4]
[322563451,1713065447244,-157.89794959,0.0004296,4]
[322563453,1713065447254,-156.12645652,0.0004296,4]
[322563455,1713065447264,-411.15724483,0.0004296,4]
[322563457,1713065447274,-1947.54127802,0.0004296,4]
[322563459,1713065447283,-208.36553956,0.0004296,4]
[322563461,1713065447293,-40585.13426362,0.0004296,4]
[322563463,1713065447302,-156.26281681,0.0004296,4]
[322563466,1713065447313,-184.58490042,0.0004296,4]
[322563467,1713065447322,-306.51029499,0.0004296,4]
[322563470,1713065447333,-969.72960193,0.0004296,4]
[322563471,1713065447343,-1302.40532052,0.0004296,4]
[322563474,1713065447353,-155.37407508,0.0004296,4]
[322563475,1713065447364,-157.45311927,0.0004296,4]
[322563478,1713065447377,-291.63760977,0.0004296,4]
[322563480,1713065447387,-214.73983617,0.0004296,4]
[322563482,1713065447397,-1873.49924995,0.0004296,4]
[322563483,1713065447407,-894.64336937,0.0004296,4]
[322563486,1713065447417,-2799.12790122,0.0004296,120]
[322563487,1713065447427,-943.57848554,0.0004296,4]
[322563489,1713065447437,-155.34797295,0.0004296,4]
[322563492,1713065447447,-156.39858501,0.0004296,2]
[322563494,1713065447456,-155.48219003,0.0004296,4]
[322563495,1713065447465,-353.4522899,0.0004296,4]
[322563498,1713065447476,-465.26500893,0.00042961,4]
[322563500,1713065447488,-185.66200165,0.00042961,4]
[322563501,1713065447498,-5833.37012483,0.00042961,4]
[322563504,1713065447507,-155.057507,0.00042961,2]
[322563505,1713065447517,-274.03484684,0.00042961,4]
[322563507,1713065447527,-186.10873738,0.00042961,4]
[322563509,1713065447537,-166.13678258,0.00042962,2]
[322563511,1713065447546,-375.74443914,0.00042962,2]
[322563513,1713065447555,-150.0,0.00043,90]
[322563515,1713065447565,-150.0,0.00043014,90]
[322563518,1713065447574,-200.17534537,0.00044,2]
[322563519,1713065447584,-150.0,0.00044877,90]
[322563521,1713065447593,-8525.96587147,0.00045,120]
[322563524,1713065447603,-536.4355009,0.00045775,2]
[322563526,1713065447615,-154.86062544,0.000459,4]
[322563527,1713065447626,-416.05715037,0.00046575,30]
[322563530,1713065447636,-209.44,0.00046979,7]
[322563531,1713065447646,-209.44,0.00046979,7]
[322563533,1713065447657,-209.44,0.00046979,7]
[322563536,1713065447668,-209.44,0.00046979,7]
[322563538,1713065447678,-209.44,0.00046979,7]
[322563540,1713065447690,-209.44,0.00046979,7]
[322563542,1713065447700,-209.44,0.00046979,7]
[322563544,1713065447710,-209.44,0.00046979,7]
[322563545,1713065447722,-209.44,0.00046979,7]
[322563548,1713065447733,-212827.51247897,0.0004698,120]
[322563549,1713065447743,-189.591689,0.0004698,7]
[322563551,1713065447753,-189.591689,0.0004698,7]
[322563553,1713065447763,-151.0,0.0004698,7]
[322563555,1713065447773,-195.88136,0.0004698,7]
[322563557,1713065447783,-195.88136,0.0004698,7]
[322563559,1713065447793,-176.94,0.0004698,7]
[322563561,1713065447807,-176.94,0.0004698,7]
[322563563,1713065447817,-175.397129,0.0004698,7]
[322563565,1713065447828,-175.397129,0.0004698,7]
[322563567,1713065447841,-151.0,0.0004698,7]
[322563569,1713065447850,-1238.789894,0.0004698,7]
[322563571,1713065447859,-160.4569,0.0004698,7]
[322563573,1713065447869,-1238.789894,0.0004698,7]
[322563575,1713065447880,-1851.021312,0.0004698,7]
[322563577,1713065447889,-230.127448,0.0004698,7]
[322563579,1713065447902,-1851.021312,0.0004698,7]
[322563581,1713065447912,-230.127448,0.0004698,7]
[322563583,1713065447922,-424.694058,0.0004698,7]
[322563585,1713065447932,-424.694058,0.0004698,7]
[322563587,1713065447942,-9071.353962,0.0004698,7]
[322563589,1713065447951,-9071.353962,0.0004698,7]
[322563591,1713065447961,-151.0,0.0004698,7]
[322563593,1713065447972,-151.0,0.0004698,7]
[322563595,1713065447982,-271.755714,0.0004698,7]
[322563597,1713065447991,-1990.210696,0.0004698,7]
[322563599,1713065448000,-1990.210696,0.0004698,7]
[322563601,1713065448010,-212.729944,0.0004698,7]
[322563603,1713065448020,-212.729944,0.0004698,7]
[322563605,1713065448029,-155.723501,0.0004698,7]
[322563607,1713065448038,-795.782119,0.0004698,7]
[322563609,1713065448048,-795.782119,0.0004698,7]
[322563611,1713065448057,-151.0,0.0004698,7]
[322563612,1713065448066,-151.0,0.0004698,7]
[322563614,1713065448076,-151.0,0.0004698,7]
[322563616,1713065448086,-4471.997018,0.0004698,7]
[322563618,1713065448096,-4471.997018,0.0004698,7]
[322563620,1713065448109,-1623.523995,0.0004698,7]
[322563623,1713065448119,-1623.523995,0.0004698,7]
[322563624,1713065448129,-155.543309,0.0004698,7]
[322563626,1713065448138,-572.873845,0.0004698,7]
[322563628,1713065448149,-572.873845,0.0004698,7]
[322563630,1713065448158,-151.0,0.0004698,7]
[322563632,1713065448168,-151.0,0.0004698,7]
[322563635,1713065448178,-212.988486,0.0004698,7]
[322563636,1713065448187,-212.988486,0.0004698,7]
[322563638,1713065448197,-20394.26066441,0.00047,4]
[322563640,1713065448206,-152.0,0.00047121,90]
[322563642,1713065448216,-1203.681576,0.00047476,120]
[322563645,1713065448227,-150.83408251,0.00047573,2]
[322563646,1713065448236,-1560.2,0.00048117,7]
[322563648,1713065448245,-301.66816502,0.00048372,4]